[Event "9th Porticcio Open 2024"]
[Site "Porticcio"]
[Date "2024.07.04"]
[Round "8.2"]
[White "Bulmaga, Irina"]
[Black "Fedorchuk, Sergey A."]
[Result "1/2-1/2"]
[ECO "B22"]
[WhiteElo "2391"]
[BlackElo "2546"]
[Annotator "TA"]
[PlyCount "102"]
[EventDate "2024.07.01"]
[EventType "swiss"]
[EventCountry "FRA"]
[SourceTitle "playchess.com"]
[Source "ChessBase"]
[SourceQuality "1"]
[TimeControl "5400+30"]

{[%evp 13,102,0,0,6,0,-1,14,31,0,30,0,8,13,10,29,30,14,27,33,19,37,38,116,108,75,95,144,151,181,183,190,200,187,195,195,180,237,209,216,83,199,142,120,140,133,0,8,4,6,0,14,19,22,18,18,23,22,20,25,25,25,25,25,25,25,25,27,25,27,25,27,27,27,27,27,27,39,39,39,39,39,27,42,0,47,0,39,0,42,0,42]} 1. e4 {[%emt 0:00:03]} c5 {[%emt 0:02:25]} 2. c3 {[%emt 0:00:04]} Nf6 {[%emt 0:03:52]} 3. e5 {[%emt 0:00:15]} Nd5 {[%emt 0:00:10]} 4. Bc4 {[%emt 0:00:10]} Nb6 {[%emt 0:02:30]} 5. Bb3 {[%emt 0:00:08]} c4 {[%emt 0:00:12]} 6. Bc2 {[%emt 0:00:07] B22: Sicilian: 2 c3.} d6 {[%emt 0:00:07]} 7. Nf3 {[%emt 0:05:05]} dxe5 {[%emt 0:07:56]} 8. Nxe5 {[%emt 0:00:39]} Qd5 {[%emt 0:09:05]} 9. Qe2 {[%emt 0:01:30]} Qxg2 {[%emt 0:04:19]} 10. Be4 {[%emt 0:00:59]} Qg5 {[%emt 0:00:32]} 11. Nxc4 {[%emt 0:02:27]} Nxc4 {[%emt 0:02:39]} 12. Qxc4 {[%emt 0:02:31]} Nd7 {[%emt 0:04:45]} 13. Na3 {[%emt 0:07:22]} Qe5 {[%emt 0:16:56]} 14. f3 {[%emt 0:32:56]} a6 {[%emt 0:14:50]} 15. d4 {[%emt 0:01:34]} Qb8 $146 {[%emt 0:00:29]} ({Predecessor:} 15... Qd6 16. Qe2 Rb8 17. Nc4 Qc7 18. Bg5 f6 19. Bh4 b5 20. Nd2 e6 21. Bf5 Ne5 22. dxe5 exf5 23. exf6+ {1-0 Fister,B (2328)-Attard,I (2008) Mare Nostrum tt 4th email 2010 [4]}) 16. Qe2 {[%emt 0:03:17]} e6 {[%emt 0:00:34]} 17. Nc4 {[%emt 0:00:38]} Be7 {[%emt 0:01:01]} (17... Qc7 $14) 18. Rg1 $1 $16 {[%emt 0:02:09]} g6 {[%emt 0:05:06]} 19. Bh6 {[%emt 0:05:42]} Qc7 {[%emt 0:00:49]} (19... f5 $142) 20. O-O-O $16 {[%emt 0:03:37]} Rb8 {[%emt 0:01:01]} 21. d5 {[%emt 0:06:05]} b5 {[%emt 0:00:18]} 22. dxe6 {[%emt 0:06:34]} fxe6 {[%emt 0:00:17]} 23. Ne3 {[%emt 0:10:45]} b4 {[%emt 0:05:26]} 24. c4 $1 {[%emt 0:00:34]} b3 {[%emt 0:00:22]} (24... Nc5 {was called for.}) 25. axb3 $1 $18 {[%emt 0:03:05]} Nc5 {[%emt 0:01:42] [#]} 26. Bc2 {[%emt 0:02:03]} (26. Qc2 $1 $18 {[%cal Oe4g6] and White stays clearly on top. Threatening mate with Bxg6+!} Nxb3+ 27. Kb1) 26... Qa5 {[%emt 0:01:05] [#]} (26... Nxb3+ $16 {is a better defense.} 27. Kb1 Qe5) 27. Kb1 {[%emt 0:00:27]} ({White should try} 27. Bg7 $1 $18 {[%cal Rg7h8]} Rf8 28. Kb1 Nxb3 29. Bxb3 Rxb3 30. Bxf8 Kxf8 31. Rd3) 27... Nxb3 $16 {[%emt 0:01:32]} 28. Bxb3 {[%emt 0:00:02]} Rxb3 {[%emt 0:00:06]} 29. Rd3 {[%emt 0:01:49]} ({White should play} 29. Qc2 $16 Rb4 30. Bg7 (30. Rxg6 $2 Ra4 $19)) 29... Rxd3 $11 {[%emt 0:06:00]} 30. Qxd3 {[%emt 0:00:02]} Kf7 {[%emt 0:00:05]} 31. Qe4 {[%emt 0:02:07]} (31. Ng4 {simplifies} Qf5 32. Qxf5+ exf5 33. Ne5+) 31... Rd8 {[%emt 0:00:39]} 32. Ng4 {[%emt 0:00:56]} Qf5 {[%emt 0:04:56]} 33. Ne5+ {[%emt 0:00:02]} (33. Qxf5+ {simplifies} exf5 34. Ne5+ Ke8 35. Nc6) 33... Ke8 {[%emt 0:00:07]} 34. Qxf5 {[%emt 0:00:34]} exf5 {[%emt 0:00:18]} 35. Nc6 {[%emt 0:00:57]} Rd7 {[%emt 0:00:51]} 36. Re1 {[%emt 0:00:12]} Bb7 {[%emt 0:00:05]} 37. Rxe7+ {[%emt 0:00:40]} Rxe7 {[%emt 0:00:04]} 38. Nxe7 {[%emt 0:00:04]} Kxe7 {[%emt 0:00:04]} 39. f4 {[%emt 0:00:06]} Be4+ {[%emt 0:00:07]} 40. Kc1 {[%emt 0:00:08]} Kd6 {[%emt 0:00:07]} 41. Kd2 {[%emt 0:00:09]} Kc6 {[%emt 0:00:29]} 42. b4 {[%emt 0:00:20]} Bg2 {[%emt 0:00:11]} 43. Kc3 {[%emt 0:00:24]} Bf1 {[%emt 0:00:04]} 44. Kd4 {[%emt 0:00:17]} Be2 {[%emt 0:00:06]} 45. Bf8 {[%emt 0:00:39]} Bf1 {[%emt 0:00:07]} 46. h4 {[%emt 0:00:29]} Be2 {[%emt 0:00:11]} 47. Be7 {[%emt 0:00:51]} Bf1 {[%emt 0:00:05]} 48. Bf8 {[%emt 0:00:30]} Be2 {[%emt 0:00:04]} 49. Be7 {[%emt 0:00:04]} Bf1 {[%emt 0:00:02]} 50. Bf8 {[%emt 0:00:13]} Be2 {[%emt 0:00:03]} 51. Be7 {[%emt 0:00:04]} Bf1 {[%emt 0:11:09]} 1/2-1/2

[Event "9th Porticcio Open 2024"]
[Site "Porticcio"]
[Date "2024.07.04"]
[Round "8.3"]
[White "Terrieux, Kevin"]
[Black "Hamdouchi, Hicham"]
[Result "0-1"]
[ECO "E14"]
[WhiteElo "2408"]
[BlackElo "2527"]
[Annotator "TA"]
[PlyCount "102"]
[EventDate "2024.07.01"]
[EventType "swiss"]
[EventCountry "FRA"]
[SourceTitle "playchess.com"]
[Source "ChessBase"]
[SourceQuality "1"]
[TimeControl "5400+30"]

{[%evp 34,102,8,1,12,0,0,0,11,0,-7,-17,-2,-18,0,-18,-8,-49,-48,-245,-253,-235,-243,-244,-259,-279,-285,-311,-212,-211,-145,-267,-269,-291,-282,-247,-120,-115,-27,-146,-49,-67,-60,-62,-58,-86,-82,-729,-729,-729,-721,-721,-714,-707,-706,-1048,-1014,-1967,-1911,-1588,-1039,-1792,-1183,-2427,-2318,-2341,-1668,-29982,-29979,-29981,-29982]} 1. d4 {[%emt 0:04:09]} Nf6 {[%emt 0:00:20]} 2. Nf3 {[%emt 0:00:35]} e6 {[%emt 0:00:26]} 3. e3 {[%emt 0:04:42]} c5 {[%emt 0:03:48]} 4. Bd3 {[%emt 0:00:33]} b6 {[%emt 0:01:35]} 5. O-O {[%emt 0:00:39]} Bb7 {[%emt 0:00:41]} 6. c4 {[%emt 0:00:10]} g6 {[%emt 0:04:06]} 7. Nc3 {[%emt 0:02:09]} Bg7 {[%emt 0:00:19]} 8. e4 {[%emt 0:07:33]} cxd4 {[%emt 0:01:47] E14: Queen's Indian: Classical Variation (4 e3).} 9. Nxd4 {[%emt 0:00:20]} d6 {[%emt 0:02:55]} 10. Be3 {[%emt 0:02:14]} O-O {[%emt 0:00:30]} 11. h3 $146 {[%emt 0:20:56]} ({Predecessor:} 11. Re1 Nc6 12. Nxc6 Bxc6 13. Rc1 Nd7 14. Bf1 Qe7 15. Qd2 Nc5 16. f3 a5 17. b3 {½-½ Moiseenko,V (2528)-Levin,E (2505) RUS-chT rapid 2016 (4.3)}) 11... Nbd7 {[%emt 0:03:03]} 12. Nf3 {[%emt 0:07:41]} Nc5 {[%emt 0:04:51]} 13. Qc2 {[%emt 0:02:54]} Rc8 {[%emt 0:05:25]} 14. Rad1 {[%emt 0:00:34]} Qc7 {[%emt 0:07:33]} 15. b3 {[%emt 0:04:40]} a6 {[%emt 0:00:48]} 16. Bd4 {[%emt 0:04:19]} Qe7 {[%emt 0:08:39]} 17. Rfe1 {[%emt 0:02:34]} e5 {[%emt 0:03:52]} 18. Be3 {[%emt 0:02:44]} b5 {[%emt 0:03:33]} 19. Bxc5 {[%emt 0:06:01]} (19. cxb5 $2 Ncxe4 20. bxa6 Nxc3 $19 (20... Rxc3 $2 21. Qb1 $19)) 19... Rxc5 {[%emt 0:00:48]} 20. Qd2 {[%emt 0:00:46]} (20. cxb5 Rfc8 21. bxa6 (21. Bc4 $2 axb5 22. Nxb5 Rxb5 $19) 21... Rxc3 $17) 20... Rfc8 {[%emt 0:01:21]} 21. Bf1 {[%emt 0:01:34]} Bf8 {[%emt 0:10:13]} 22. Rc1 {[%emt 0:02:16]} b4 {[%emt 0:05:23]} 23. Na4 {[%emt 0:01:33]} R5c7 {[%emt 0:10:54]} 24. Bd3 {[%emt 0:00:51]} a5 {[%emt 0:00:57]} 25. a3 {[%emt 0:00:36]} bxa3 {[%emt 0:02:09]} 26. Qa2 $2 {[%emt 0:06:09] [#]} (26. Ra1 $15) 26... d5 $1 $19 {[%emt 0:02:15]} 27. exd5 {[%emt 0:00:03]} Nxd5 {[%emt 0:00:12]} 28. Be4 {[%emt 0:00:51]} Qf6 {[%emt 0:01:15]} 29. Bxd5 {[%emt 0:02:19]} Bxd5 {[%emt 0:00:07]} 30. Nxe5 {[%emt 0:00:08]} Bb7 {[%emt 0:04:24]} 31. Ng4 {[%emt 0:04:04]} Qc6 {[%emt 0:01:19]} 32. f3 {[%emt 0:00:02]} (32. Ne3 $17) 32... h5 $19 {[%emt 0:02:13]} 33. Ne5 {[%emt 0:00:26]} Qe6 {[%emt 0:01:11]} 34. c5 {[%emt 0:02:17] [#]} Rd8 {[%emt 0:04:54]} (34... Bxc5+ 35. Rxc5 Rxc5 36. Nxc5 Rxc5 37. Nd3 $18 (37. Qxa3 $2 Rxe5 38. Rxe5 Qxe5 $19)) (34... Re7 $1 $19 {Strongly threatening ...Rce8.} 35. Qxa3 Rce8) 35. Qxa3 $17 {[%emt 0:02:31]} Bh6 {[%emt 0:00:05]} ({Better is} 35... Qf5 $17 {Threatens to win with ...Rd2.} 36. Qa1 Bg7) 36. Nc4 {[%emt 0:00:28]} (36. Ng4 $1 $11 {was the only way to keep the balance.} hxg4 (36... Bxc1 $2 37. Qxc1 $18) 37. Rxe6 fxe6 38. Qa1 (38. hxg4 $2 Be3+ 39. Kf1 Rd2 $19) 38... Bxc1 39. Qxc1 gxf3 40. Qg5) 36... Qf6 {[%emt 0:01:10]} (36... Qd5 $17 {...Qd4+ would now be deadly.} 37. Kh1 Bf4 (37... Bxc1 38. Qxc1 Bc6 39. Qf4 $15)) 37. Qa1 $15 {[%emt 0:01:19]} Qh4 $1 {[%emt 0:00:29]} 38. Rcd1 {[%emt 0:00:57]} Rcc8 $1 {[%emt 0:01:17]} 39. Nd6 {[%emt 0:00:59]} (39. Nxa5 $2 Bxf3 40. Qe5 Rxd1 $19 (40... Bxd1 $2 41. Rf1 $19)) 39... Bxf3 {[%emt 0:00:28]} 40. Nxc8 $2 {[%emt 0:03:43][%mdl 8192]} (40. Rd3 $17 Bc6 41. Qc3 (41. Nxc8 $2 Rxd3 42. Ne7+ Kh7 $19)) 40... Be3+ $19 {[%emt 0:00:41]} ({Weaker is} 40... Bxd1 41. Rxd1 Rxc8 42. Qe5 $17) 41. Rxe3 {[%emt 0:00:57]} Rxd1+ {[%emt 0:00:10]} (41... Bxd1 $2 {too greedy.} 42. Nd6 Bxb3 43. Rxb3 $18) 42. Qxd1 {[%emt 0:00:01]} Bxd1 {[%emt 0:00:09]} 43. Ne7+ {[%emt 0:00:53]} Kg7 {[%emt 0:00:57]} 44. Nc3 {[%emt 0:00:48]} Bxb3 {[%emt 0:00:30]} 45. c6 {[%emt 0:00:27]} Qd4 {[%emt 0:00:42]} 46. Kf2 {[%emt 0:00:18]} a4 {[%emt 0:00:22]} 47. Ne4 {[%emt 0:00:46]} Be6 {[%emt 0:01:00]} 48. c7 {[%emt 0:00:01]} a3 {[%emt 0:00:20]} 49. Nc6 {[%emt 0:00:16]} Qb6 {[%emt 0:00:33]} 50. Nd6 {[%emt 0:00:40]} Qxc6 {[%emt 0:00:18]} 51. Rxe6 {[%emt 0:00:05]} fxe6 {[%emt 0:00:20]} 0-1

[Event "9th Porticcio Open 2024"]
[Site "Porticcio"]
[Date "2024.07.04"]
[Round "8.4"]
[White "Clarke, Brandon G I"]
[Black "Kuru, Atilla"]
[Result "1-0"]
[ECO "C41"]
[WhiteElo "2498"]
[BlackElo "2314"]
[Annotator "TA"]
[PlyCount "97"]
[EventDate "2024.07.01"]
[EventType "swiss"]
[EventCountry "FRA"]
[SourceTitle "playchess.com"]
[Source "ChessBase"]
[SourceQuality "1"]
[TimeControl "5400+30"]

{[%evp 28,96,-62,-75,47,0,-41,-178,-187,-149,-168,-183,-167,-213,-239,-254,-227,-247,-251,-268,-214,-414,-177,-196,-158,-159,-29,-45,-45,-223,-111,-183,-102,-114,-82,-66,-66,-264,-205,-216,-213,-224,-236,-246,-202,-245,-228,-242,-58,-50,0,-254,0,0,0,0,535,534,526,495,2613,1971,2229,1927,29992,29993,29993,29988,29992,29993,29999]} 1. e4 {[%emt 0:00:28]} d6 {[%emt 0:08:08]} 2. d4 {[%emt 0:00:33]} Nf6 {[%emt 0:00:07]} 3. Nc3 {[%emt 0:00:10]} e5 {[%emt 0:00:05]} 4. Nf3 {[%emt 0:00:20]} Nbd7 {[%emt 0:00:05]} 5. g4 {[%emt 0:02:49]} Nxg4 {[%emt 0:20:41]} 6. Rg1 {[%emt 0:00:02] C41: Philidor Defence.} exd4 {[%emt 0:05:23]} 7. Nxd4 {[%emt 0:03:32]} Nde5 {[%emt 0:03:49]} 8. h3 {[%emt 0:01:52]} Nf6 {[%emt 0:00:31]} 9. f4 {[%emt 0:04:49]} Nc6 {[%emt 0:10:52]} 10. Be3 {[%emt 0:01:41]} g6 {[%emt 0:02:20]} 11. Bb5 $146 {[%emt 0:12:05]} ({Predecessor:} 11. Qf3 Bg7 12. O-O-O Nxd4 13. Bxd4 Nh5 14. Bxg7 Nxg7 15. f5 g5 16. h4 h6 17. hxg5 hxg5 {1-0 Nowak,K (2275)-Litner,I (1978) POL-chT 2nd League 2022 (2.97)}) 11... Bd7 {[%emt 0:01:25]} 12. Qf3 {[%emt 0:00:40]} Bh6 {[%emt 0:22:13]} 13. e5 {[%emt 0:20:56]} Nxd4 {[%emt 0:06:30]} 14. Bxd4 {[%emt 0:01:53]} Bxb5 {[%emt 0:00:07]} (14... dxe5 $1 $17 15. Bxe5 (15. fxe5 O-O $17) 15... Bxb5) 15. exf6 $15 {[%emt 0:16:20] [#]} Bd7 {[%emt 0:01:29]} (15... Qd7 $1 $17 16. Qe3+ (16. Qxb7 $2 Bc6 $19) 16... Kd8) 16. Nd5 {[%emt 0:06:14]} (16. Qxb7 O-O 17. O-O-O c6 $17) (16. O-O-O $1 $14) 16... c6 $15 {[%emt 0:02:37]} 17. Ne3 {[%emt 0:08:58]} ({White should try} 17. Ne7 $1 $15 Qa5+ 18. Bc3) 17... Qa5+ $19 {[%emt 0:00:45]} 18. Bc3 {[%emt 0:02:05]} Qa4 {[%emt 0:00:06]} 19. Rf1 {[%emt 0:01:47]} O-O-O {[%emt 0:00:17]} 20. b3 {[%emt 0:00:55]} (20. O-O-O {was worth a try.}) 20... Qa3 $19 {[%emt 0:01:40]} 21. Rd1 {[%emt 0:06:01]} Rhe8 {[%emt 0:00:41]} (21... Qxa2 $2 22. Ra1 $18 (22. Rxd6 Rhe8 $17) (22. Rxd6 Rhe8 $17)) 22. Kf2 {[%emt 0:00:06]} d5 {[%emt 0:04:01]} (22... Qxa2 23. Rd2 (23. Rxd6 $2 Bf8 $17) (23. Ra1 Rxe3 24. Rxa2 Rxf3+ 25. Kxf3 Kb8 $16) 23... Qa3 24. Nc4 Qc5+ 25. Bd4 $14) 23. Be5 {[%emt 0:03:18]} Qc5 {[%emt 0:00:03]} (23... Qxa2 $2 24. Ra1 $18) 24. Qg3 $2 {[%emt 0:00:54]} (24. Bd4 Qa3 25. Kg3) 24... Bf5 {[%emt 0:02:48]} (24... Rxe5 $142 25. fxe5 d4) 25. c3 $19 {[%emt 0:00:01]} a5 {[%emt 0:01:16]} 26. Rfe1 {[%emt 0:00:14]} Bf8 {[%emt 0:01:44]} ({Black should play} 26... Be4 $17 {...Bf8 is the strong threat.} 27. Re2 Bf8 28. Qg4+ Rd7) 27. Bd4 $11 {[%emt 0:00:33]} Qa3 {[%emt 0:00:02]} 28. Rd2 $2 {[%emt 0:01:40]} ({White must play} 28. Nxf5 $15 gxf5 (28... Qxa2+ 29. Kf3 $11) 29. Kf3) 28... Be6 {[%emt 0:01:53]} (28... Be4 $19 {is more deadly. Hoping for ...Bc5.} 29. Rde2 Bc5 (29... c5 30. Be5 $17)) 29. Ng4 {[%emt 0:01:17]} (29. Bb6 $17 {is a better defense.}) 29... h5 {[%emt 0:00:36]} (29... c5 $19 30. Be5 c4) 30. Ne5 $17 {[%emt 0:00:06]} c5 {[%emt 0:00:53]} 31. Be3 {[%emt 0:00:07]} a4 {[%emt 0:00:08]} 32. Rb1 $2 {[%emt 0:01:46]} (32. Kg1 $1 $15) 32... axb3 {[%emt 0:01:15]} 33. Rxb3 {[%emt 0:00:39]} Qa6 {[%emt 0:00:02]} 34. Rbb2 {[%emt 0:01:32]} Bd6 {[%emt 0:00:36]} 35. Kg1 {[%emt 0:00:12]} Kc7 {[%emt 0:00:19]} 36. h4 {[%emt 0:00:12]} Qa5 {[%emt 0:00:32]} 37. Bf2 {[%emt 0:00:24]} Ra8 $2 {[%emt 0:00:50]} (37... b6 $19 {Threatens to win with ...Bxe5.} 38. Re2 Qa4) 38. Qf3 $1 $15 {[%emt 0:00:22]} Bxe5 {[%emt 0:00:56]} (38... Qa6 $1 $15 39. Rxd5 Rad8 (39... Bxd5 40. Qxd5 Re6 41. Bxc5 $11)) 39. fxe5 $4 {[%emt 0:00:02][%mdl 8192] [#]} (39. Rxd5 $1 $11 Bxd5 40. Qxd5) 39... Red8 $2 {[%emt 0:00:11]} (39... b6 $1 $19 {aiming for ...Qa4.} 40. Rxd5 Bxd5 41. Qxd5 Re6 (41... Qxc3 42. Qd6+ Kc8 43. Rxb6 Qa5 44. Qc6+ Kd8 45. Rb7)) 40. c4 $1 $11 {[%emt 0:00:48]} Kc6 {[%emt 0:01:07]} ({Weaker is} 40... dxc4 41. Qxb7#) 41. Rd3 {[%emt 0:01:04]} Rd7 $2 {[%emt 0:00:32][%mdl 8192]} (41... Qa4 $1 $11 {and Black is okay.}) 42. Rb5 $18 {[%emt 0:00:14]} Qxb5 {[%emt 0:01:00]} 43. cxb5+ {[%emt 0:00:01]} Kxb5 {[%emt 0:00:01]} (43... Kb6 $142 44. Ra3 Rxa3 45. Qxa3 d4) 44. Rb3+ $18 {[%emt 0:00:37]} Kc6 {[%emt 0:00:01]} 45. Bxc5 {[%emt 0:00:21]} Rxa2 {[%emt 0:00:52]} 46. Qc3 {[%emt 0:00:38]} Ra4 {[%emt 0:00:36]} 47. Bd4+ {[%emt 0:01:59]} Rc4 {[%emt 0:00:41]} 48. Qa5 {[%emt 0:00:02]} Rc7 {[%emt 0:00:04]} 49. Qb5# {[%emt 0:00:07]} 1-0

[Event "9th Porticcio Open 2024"]
[Site "Porticcio"]
[Date "2024.07.04"]
[Round "8.5"]
[White "Bailet, Pierre"]
[Black "Nayak Rajesh"]
[Result "1-0"]
[ECO "B43"]
[WhiteElo "2491"]
[BlackElo "2185"]
[Annotator "RC"]
[PlyCount "123"]
[EventDate "2024.07.01"]
[EventType "swiss"]
[EventCountry "FRA"]
[SourceTitle "playchess.com"]
[Source "ChessBase"]
[SourceQuality "1"]
[TimeControl "5400+30"]

1. e4 {[%emt 0:02:32]} c5 {[%emt 0:00:13]} 2. Nc3 {[%emt 0:00:16]} a6 {[%emt 0:01:50]} 3. g3 {[%emt 0:00:37]} b5 {[%emt 0:00:20]} 4. Bg2 {[%emt 0:00:44]} Bb7 {[%emt 0:00:28]} 5. Nge2 {[%emt 0:00:17]} e6 {[%emt 0:03:58]} 6. d4 {[%emt 0:01:26]} b4 {[%emt 0:02:38]} 7. Na4 {[%emt 0:00:19]} cxd4 {[%emt 0:00:23]} 8. Nxd4 {[%emt 0:00:30]} Nf6 {[%emt 0:04:54]} 9. O-O {[%emt 0:00:46]} Bxe4 {[%emt 0:20:53]} 10. Bxe4 {[%emt 0:00:28]} Nxe4 {[%emt 0:00:02]} 11. Re1 {[%emt 0:00:10]} d5 {[%emt 0:02:35]} 12. c4 {[%emt 0:00:27]} bxc3 {[%emt 0:03:14]} 13. Nxc3 {[%emt 0:00:38]} Nxc3 {[%emt 0:10:18]} 14. Qh5 {[%emt 0:01:35]} Ne4 {[%emt 0:04:29]} 15. Nxe6 {[%emt 0:00:16]} Qb6 {[%emt 0:03:15]} 16. Nc7+ {[%emt 0:01:37]} Qxc7 {[%emt 0:00:41]} 17. Qxd5 {[%emt 0:00:09]} Ra7 {[%emt 0:06:45]} 18. Bf4 {[%emt 0:20:41]} Qb7 {[%emt 0:06:24]} 19. Qxe4+ {[%emt 0:17:45]} Be7 {[%emt 0:06:53]} 20. Qa4+ {[%emt 0:01:40]} Qd7 {[%emt 0:00:33]} 21. Rxe7+ {[%emt 0:03:06]} Kxe7 {[%emt 0:00:18]} 22. Re1+ {[%emt 0:00:04]} Kf6 {[%emt 0:00:35]} 23. Qa5 {[%emt 0:00:08]} h6 {[%emt 0:06:32]} 24. Bxb8 {[%emt 0:00:42]} Rxb8 {[%emt 0:00:49]} 25. Qe5+ {[%emt 0:00:11]} Kg6 {[%emt 0:00:04]} 26. Qxb8 {[%emt 0:00:11]} Rc7 {[%emt 0:03:11]} 27. Qb3 {[%emt 0:09:10]} Rc6 {[%emt 0:03:30]} 28. Qf3 {[%emt 0:03:35]} Kh7 {[%emt 0:00:55]} 29. h4 {[%emt 0:00:32]} Rf6 {[%emt 0:00:35]} 30. Qe4+ {[%emt 0:01:09]} Qf5 {[%emt 0:02:02]} 31. b4 {[%emt 0:03:06]} Qxe4 {[%emt 0:00:42]} 32. Rxe4 {[%emt 0:00:08]} Rf5 {[%emt 0:01:48]} 33. a4 {[%emt 0:03:28]} Rd5 {[%emt 0:00:08]} 34. Kg2 {[%emt 0:00:39]} Rd2 {[%emt 0:00:18]} 35. Rc4 {[%emt 0:01:03]} Ra2 {[%emt 0:00:18]} 36. a5 {[%emt 0:00:08]} Rb2 {[%emt 0:01:09]} 37. h5 {[%emt 0:00:22]} g6 {[%emt 0:00:20]} 38. hxg6+ {[%emt 0:01:08]} Kxg6 {[%emt 0:00:17]} 39. Rg4+ {[%emt 0:02:19]} Kf6 {[%emt 0:00:14]} 40. Rf4+ {[%emt 0:00:05]} Ke6 {[%emt 0:00:10]} 41. Kf3 {[%emt 0:00:30]} h5 {[%emt 0:00:25]} 42. Ke3 {[%emt 0:00:26]} f5 {[%emt 0:00:32]} 43. Kd3 {[%emt 0:02:22]} Ke5 {[%emt 0:00:24]} 44. Kc3 {[%emt 0:05:22]} Ra2 {[%emt 0:00:11]} 45. Kb3 {[%emt 0:01:03]} Rd2 {[%emt 0:00:15]} 46. Kc3 {[%emt 0:01:11]} Ra2 {[%emt 0:00:07]} 47. Kc4 {[%emt 0:00:30]} h4 {[%emt 0:01:01]} 48. Rxh4 {[%emt 0:01:09]} Rc2+ {[%emt 0:00:07]} 49. Kb3 {[%emt 0:01:20]} Rxf2 {[%emt 0:00:05]} 50. Rh6 {[%emt 0:01:31]} Rf3+ {[%emt 0:01:16]} 51. Kc4 {[%emt 0:01:01]} Rxg3 {[%emt 0:00:08]} 52. Rxa6 {[%emt 0:00:04]} f4 {[%emt 0:04:33]} 53. Ra8 {[%emt 0:00:37]} f3 {[%emt 0:00:32]} 54. Re8+ {[%emt 0:00:26]} Kd6 {[%emt 0:00:14]} 55. Rf8 {[%emt 0:00:13]} Kc7 {[%emt 0:00:12]} 56. Rf7+ {[%emt 0:00:08]} Kb8 {[%emt 0:00:07]} 57. Kb5 {[%emt 0:01:59]} Rg5+ {[%emt 0:01:03]} 58. Ka4 {[%emt 0:00:08]} Rg3 {[%emt 0:01:02]} 59. a6 {[%emt 0:02:28]} f2 {[%emt 0:02:28]} 60. Ka5 {[%emt 0:01:44]} Ra3+ {[%emt 0:00:25]} 61. Kb6 {[%emt 0:00:14]} Kc8 {[%emt 0:00:41]} 62. Rxf2 {[%emt 0:12:57]} 1-0

[Event "9th Porticcio Open 2024"]
[Site "Porticcio"]
[Date "2024.07.04"]
[Round "8.6"]
[White "Yankelevich, Lev"]
[Black "Rakotomaharo, Fy Antenaina"]
[Result "*"]
[ECO "D50"]
[WhiteElo "2416"]
[BlackElo "2448"]
[Annotator "RC"]
[PlyCount "60"]
[EventDate "2024.07.01"]
[EventType "swiss"]
[EventCountry "FRA"]
[SourceTitle "playchess.com"]
[Source "ChessBase"]
[SourceQuality "1"]
[TimeControl "5400+30"]

1. d4 {[%emt 0:00:30]} d5 {[%emt 0:03:15]} 2. c4 {[%emt 0:00:00]} e6 {[%emt 0:00:04]} 3. Nc3 {[%emt 0:00:00]} Nf6 {[%emt 0:01:49]} 4. Bg5 {[%emt 0:00:00]} Bb4 {[%emt 0:06:17]} 5. e3 {[%emt 0:01:03]} c6 {[%emt 0:10:56]} 6. Qb3 {[%emt 0:02:34]} Qa5 {[%emt 0:08:59]} 7. Bxf6 {[%emt 0:03:50]} gxf6 {[%emt 0:00:05]} 8. Rc1 {[%emt 0:01:57]} Nd7 {[%emt 0:01:41]} 9. a3 {[%emt 1:25:06]} Be7 {[%emt 0:00:30]} 10. cxd5 {[%emt 0:02:47]} cxd5 {[%emt 0:00:14]} 11. Nf3 {[%emt 0:01:14]} Rg8 {[%emt 0:04:24]} 12. g3 {[%emt 0:06:57]} a6 {[%emt 0:58:16]} 13. Bd3 {[%emt 0:00:52]} f5 {[%emt 0:00:08]} 14. O-O {[%emt 0:00:51]} b5 {[%emt 0:07:27]} 15. Nxd5 {[%emt 0:22:35]} exd5 {[%emt 0:00:23]} 16. Qxd5 {[%emt 0:01:23]} Rb8 {[%emt 0:11:40]} 17. Bxf5 {[%emt 0:08:00]} Qd8 {[%emt 0:00:27]} 18. Ne5 {[%emt 0:05:05]} Nxe5 {[%emt 0:00:44]} 19. Qxe5 {[%emt 0:00:09]} Bxf5 {[%emt 0:00:42]} 20. Qxf5 {[%emt 0:00:06]} Rg6 {[%emt 0:00:19]} 21. Rc2 {[%emt 0:38:48]} Qd7 {[%emt 0:02:23]} 22. Qe5 {[%emt 0:37:43]} Rc8 {[%emt 0:38:40]} 23. Rfc1 {[%emt 0:00:40]} Rxc2 {[%emt 0:09:16]} 24. Rxc2 {[%emt 0:00:02]} f6 {[%emt 0:00:45]} 25. Qh5 {[%emt 0:04:01]} Qg4 {[%emt 0:00:12]} 26. Qxg4 {[%emt 0:33:29]} Rxg4 {[%emt 0:00:02]} 27. Rc6 {[%emt 0:00:05]} a5 {[%emt 0:00:46]} 28. Ra6 {[%emt 0:01:50]} Bd8 {[%emt 0:03:12]} 29. Ra7 {[%emt 0:01:02]} Rg5 {[%emt 0:08:56]} 30. Rxh7 {[%emt 0:02:56]} Be7 {[%emt 0:00:06]} *